bitfinex-derivatives/quotes_SOLF0:USTF0_20260110
["timestamp","ask_amount","ask_price","bid_price","bid_amount"]
[1768022193406,5.63813065,136.03,135.97,0.32096875]
[1768022193606,6.6235,136.06,135.98,6.94732834]
[1768022193812,5.63812621,136.05,135.98,6.94732834]
[1768022194011,5.63812621,136.04,135.98,6.94732834]
[1768022194213,6.6235,136.06,135.98,6.94732834]
[1768022194214,5.63812621,136.03,135.98,6.94732834]
[1768022194512,6.6235,136.06,135.98,6.94732834]
[1768022194711,5.63812545,136.05,135.98,6.94732834]
[1768022194913,5.63812545,136.04,135.98,6.94732834]
[1768022195112,5.63812545,136.03,135.98,6.94732834]
[1768022195318,6.6235,136.06,135.98,6.94732834]
[1768022195516,5.63812469,136.05,135.98,6.94732834]
[1768022195707,5.63812469,136.04,135.98,6.94732834]
[1768022196008,5.63812469,136.03,135.98,6.94732834]
[1768022196206,6.6235,136.06,135.98,6.94732834]
[1768022196407,5.63812392,136.05,135.98,6.94732834]
[1768022196708,5.63812392,136.04,135.98,6.94732834]
[1768022196913,5.63812392,136.03,135.98,6.94732834]
[1768022197213,6.6235,136.06,135.98,6.94732834]
[1768022197416,5.63815424,136.05,135.98,6.94732834]
[1768022197607,5.63815424,136.04,135.98,6.94732834]
[1768022197807,5.63815424,136.03,135.98,6.94732834]
[1768022198009,6.6235,136.06,135.98,6.94732834]
[1768022198315,5.63815261,136.05,135.99,6.6265]
[1768022198515,5.63815261,136.04,135.99,6.6265]
[1768022198714,5.63815261,136.03,135.99,6.6265]
[1768022198914,6.6235,136.06,135.99,6.6265]
[1768022199118,5.63803815,136.05,135.99,6.6265]
[1768022199312,5.63803815,136.04,135.99,6.6265]
[1768022199511,5.63803815,136.03,135.99,6.6265]
[1768022199714,6.6235,136.06,135.99,6.6265]
[1768022199913,5.63801753,136.05,135.99,6.6265]
[1768022200112,5.63801753,136.04,135.99,6.6265]
[1768022200313,5.63801753,136.03,135.99,6.6265]
[1768022200518,6.6235,136.06,135.99,6.6265]
[1768022200718,5.63799408,136.05,135.99,6.6265]
[1768022200920,5.63799408,136.04,135.99,6.6265]
[1768022201118,5.63799408,136.03,135.99,6.6265]
[1768022201314,6.6235,136.06,135.99,6.6265]
[1768022201613,5.63797089,136.05,135.99,6.6265]
[1768022201813,5.63797089,136.04,135.99,6.6265]
[1768022202014,5.63797089,136.03,135.99,6.6265]
[1768022202215,6.6235,136.06,135.99,6.6265]
[1768022202414,5.63806317,136.05,135.99,6.6265]
[1768022202614,5.63806317,136.04,135.99,6.6265]
[1768022202915,5.63806317,136.03,135.99,6.6265]
[1768022203113,6.6235,136.06,135.99,6.6265]
[1768022203309,5.63799003,136.05,135.99,6.6265]
[1768022203520,5.63799003,136.04,135.99,6.6265]
[1768022203818,5.63799003,136.03,135.99,6.6265]
[1768022204018,6.6235,136.06,135.99,6.6265]
[1768022204225,5.63798646,136.05,135.99,6.6265]
[1768022204412,5.63798646,136.04,135.99,6.6265]
[1768022204712,5.63798646,136.03,135.99,6.6265]
[1768022205005,6.6235,136.06,135.99,6.6265]
[1768022205206,5.63805629,136.05,135.99,6.94672834]
[1768022205509,5.63805629,136.04,135.99,6.94672834]
[1768022205709,5.63805629,136.03,135.99,6.94672834]
[1768022205913,6.6235,136.06,135.99,6.94672834]
[1768022206117,5.63812457,136.05,135.99,6.94672834]
[1768022206413,5.63812457,136.04,135.99,6.94672834]
[1768022206613,5.63812457,136.03,135.99,6.94672834]
[1768022206914,6.6235,136.06,135.99,6.94672834]
[1768022207115,5.63812236,136.05,135.99,6.94672834]
[1768022207313,5.63812236,136.04,135.99,6.94672834]
[1768022207608,5.63812236,136.03,135.99,6.94672834]
[1768022207807,6.6235,136.06,135.99,6.94672834]
[1768022208009,5.63811605,136.05,135.99,6.94672834]
[1768022208220,5.63811605,136.04,135.99,6.94672834]
[1768022208419,5.63811605,136.03,135.99,6.94672834]
[1768022208719,6.6235,136.06,135.99,6.94672834]
[1768022209014,5.63810977,136.05,135.99,6.94672834]
[1768022209212,5.63810977,136.04,135.99,6.94672834]
[1768022209407,5.63810977,136.03,135.99,6.94672834]
[1768022209614,6.6235,136.06,135.99,6.94672834]
[1768022209816,5.6381035,136.05,135.99,6.94672834]
[1768022210114,5.6381035,136.04,135.99,6.94672834]
[1768022210314,5.6381035,136.03,135.99,6.94672834]
[1768022210516,6.6235,136.06,135.99,6.94672834]
[1768022210816,5.63809727,136.05,135.99,6.94672834]
[1768022211016,5.63809727,136.04,135.99,6.94672834]
[1768022211223,5.63809727,136.03,135.99,6.94672834]
[1768022211422,6.6235,136.06,135.99,6.94672834]
[1768022211627,5.63809106,136.05,135.99,6.94672834]
[1768022211921,5.63809106,136.04,135.99,6.94672834]
[1768022212124,5.63809106,136.03,135.99,6.94672834]
[1768022212325,6.6235,136.06,135.99,6.94672834]
[1768022212519,5.6380851,136.05,135.99,6.94672834]
[1768022212720,5.6380851,136.04,135.99,6.94672834]
[1768022213019,5.6380851,136.03,135.99,6.94672834]
[1768022213219,6.6235,136.06,135.99,6.94672834]
[1768022213430,5.63808193,136.05,135.99,6.94672834]
[1768022213724,5.63808193,136.04,135.99,6.94672834]
[1768022213925,5.63808193,136.03,135.99,6.94672834]
[1768022214125,6.6235,136.06,135.99,6.94672834]
[1768022214430,5.63807877,136.05,135.99,6.94672834]
[1768022214724,6.6235,136.06,135.99,6.94672834]
[1768022214725,5.63807877,136.04,135.99,6.94672834]
[1768022214918,5.63807877,136.03,135.99,6.94672834]
[1768022215115,6.6235,136.06,135.99,6.94672834]
[1768022215317,5.63807074,136.05,135.99,6.94672834]
[1768022215519,5.63807074,136.04,135.99,6.94672834]
[1768022215716,5.63807074,136.03,135.99,6.94672834]
[1768022215923,6.6235,136.06,135.99,6.94672834]
[1768022216121,5.63807074,136.05,135.99,6.94672834]
[1768022216322,5.63807074,136.04,135.99,6.94672834]
[1768022216521,5.63807074,136.03,135.99,6.94672834]
[1768022216728,6.6235,136.06,135.99,6.94672834]
[1768022216930,5.63806278,136.05,135.99,6.94672834]
[1768022217128,5.63806278,136.04,135.99,6.94672834]
[1768022217336,5.63806278,136.03,135.99,6.94672834]
[1768022217629,6.6235,136.06,135.99,6.94672834]
[1768022217926,5.63805486,136.05,135.99,6.94672834]
[1768022218124,5.63805486,136.04,135.99,6.94672834]
[1768022218328,5.63805486,136.03,135.99,6.94672834]
[1768022218626,6.6235,136.06,135.99,6.94672834]
[1768022218826,5.63804699,136.05,135.99,6.94672834]
[1768022219029,5.63804699,136.04,135.99,6.94672834]
[1768022219228,5.63804699,136.03,135.99,6.94672834]
[1768022219425,6.6235,136.06,135.99,6.94672834]
[1768022219624,5.63803916,136.05,135.99,6.94672834]
[1768022219823,5.63803916,136.04,135.99,6.94672834]
[1768022220022,6.6235,136.06,135.99,6.94672834]
[1768022220023,5.63803916,136.03,135.99,6.94672834]
[1768022220225,6.6235,136.06,135.99,6.94672834]
[1768022220534,5.62639714,136.05,135.99,6.94672834]
[1768022220725,5.62639714,136.04,135.99,6.94672834]
[1768022220926,5.62639714,136.03,135.99,6.94672834]
[1768022221130,6.6235,136.06,135.99,6.94672834]
[1768022221331,5.62638911,136.05,135.99,6.94672834]
[1768022221534,5.62638911,136.04,135.99,6.94672834]
[1768022221733,5.62638911,136.03,135.99,6.94672834]
[1768022221934,6.6235,136.06,135.99,6.94672834]
[1768022222137,5.62638911,136.05,135.99,6.94672834]
[1768022222328,5.62638911,136.04,135.99,6.94672834]
[1768022222529,5.62638911,136.03,135.99,6.94672834]
[1768022222728,6.6235,136.06,135.99,6.94672834]
[1768022222929,5.62637949,136.05,135.99,6.94672834]
[1768022223128,5.62637949,136.04,135.99,6.94672834]
[1768022223337,5.62637949,136.03,135.99,0.32022834]
[1768022223538,6.6235,136.06,135.99,0.32022834]
[1768022223739,5.62627393,136.05,135.99,0.32022834]
[1768022223928,5.62627393,136.04,135.99,0.32022834]
[1768022224130,5.62627393,136.03,135.97,6.6272]
[1768022224333,5.62627393,136.02,135.97,6.6272]
[1768022224532,1.1545294,136.05,135.97,6.6272]
[1768022224731,5.62707699,136.04,135.97,6.6272]
[1768022224936,5.62707699,136.03,135.97,6.6272]
[1768022225241,5.62707699,136.02,135.97,6.6272]
[1768022225440,1.1545294,136.05,135.97,6.6272]
[1768022225640,12.25122748,136.04,135.97,6.6272]
[1768022225840,5.62692748,136.03,135.97,6.6272]
[1768022226035,5.62692748,136.02,135.97,6.6272]
[1768022226236,6.6243,136.04,135.97,6.6272]
[1768022226437,5.62680511,136.03,135.97,6.6272]
[1768022226637,5.62680511,136.02,135.97,6.6272]
[1768022226844,6.6243,136.04,135.97,6.6272]
[1768022227141,5.62680511,136.03,135.97,6.6272]
[1768022227338,5.62680511,136.02,135.96,0.32208054]
[1768022227544,5.62687744,136.01,135.95,6.95038054]
[1768022227747,6.6248,136.03,135.95,6.95038054]
[1768022227942,5.62697631,136.02,135.95,6.95038054]
[1768022228139,5.62697631,136.01,135.97,0.32208054]
[1768022228338,6.6248,136.03,135.96,6.6281]
[1768022228539,5.62658882,136.02,135.96,6.6281]
[1768022228744,5.62658882,136.01,135.96,6.6281]
[1768022228947,6.6248,136.03,135.96,6.6281]
[1768022229143,5.62679515,136.02,135.96,6.6281]
[1768022229450,5.62679515,136.01,135.96,6.6281]
[1768022229748,6.6248,136.03,135.96,6.6281]
[1768022229943,5.62659389,136.02,135.96,6.6281]
[1768022230149,5.62659389,136.01,135.96,6.6281]
[1768022230349,6.6248,136.03,135.96,6.6281]
[1768022230547,5.62639733,136.02,135.96,6.6281]
[1768022230741,5.62639733,136.01,135.96,6.6281]
[1768022230945,6.6248,136.03,135.96,6.6281]
[1768022231142,5.62639733,136.02,135.96,6.6281]
[1768022231352,5.62639733,136.01,135.95,0.32208054]
[1768022231554,6.6248,136.03,135.95,0.32208054]
[1768022231853,5.6262026,136.02,135.95,0.32208054]
[1768022232052,5.6262026,136.01,135.95,0.32208054]
[1768022232254,6.6248,136.03,135.95,0.32208054]
[1768022232452,5.62601293,136.02,135.95,0.32208054]
[1768022232645,5.62601293,136.01,135.95,0.32208054]
[1768022232847,6.6248,136.03,135.95,0.32208054]
[1768022233054,5.62601293,136.02,135.95,6.95068054]
[1768022233253,5.62601293,136.01,135.95,6.95068054]
[1768022233454,6.6248,136.03,135.95,6.95068054]
[1768022233649,5.62582801,136.02,135.95,6.95068054]
[1768022233855,5.62582801,136.01,135.95,6.95068054]
[1768022234059,6.6248,136.03,135.95,6.95068054]
[1768022234354,5.625512,136.02,135.95,6.95068054]
[1768022234555,5.625512,136.01,135.95,6.95068054]
[1768022234855,6.6248,136.03,135.95,6.95068054]
[1768022235055,5.62564758,136.02,135.95,6.95068054]
[1768022235254,5.62564758,136.01,135.95,6.95068054]
[1768022235462,6.6248,136.03,135.95,6.95068054]
[1768022235646,5.6254624,136.02,135.95,6.95068054]
[1768022235849,5.6254624,136.01,135.95,6.95068054]
[1768022236050,6.6248,136.03,135.95,6.95068054]
[1768022236253,5.62517399,136.02,135.95,6.95068054]
[1768022236544,5.62517399,136.01,135.95,6.95068054]
[1768022236744,6.6248,136.03,135.95,6.95068054]
[1768022236957,5.62522883,136.02,135.95,6.95068054]
[1768022237153,5.62522883,136.01,135.95,6.95068054]
[1768022237353,6.6248,136.03,135.95,6.95068054]
[1768022237554,5.62484817,136.02,135.95,6.95068054]
[1768022237856,5.62484817,136.01,135.95,6.95068054]
[1768022238157,6.6248,136.03,135.95,6.95068054]
[1768022238455,5.62454264,136.02,135.95,6.95068054]
[1768022238757,5.62454264,136.01,135.95,6.95068054]
[1768022238957,6.6248,136.03,135.95,6.95068054]
[1768022239151,5.62454264,136.02,135.95,6.95068054]
[1768022239351,5.62454264,136.01,135.95,6.95068054]
[1768022239551,6.6248,136.03,135.95,6.95068054]
[1768022239753,5.6242754,136.02,135.95,6.95068054]
[1768022239953,5.6242754,136.01,135.95,6.95068054]
[1768022240159,6.6248,136.03,135.95,6.95068054]
[1768022240359,5.62404382,136.02,135.95,6.95068054]
[1768022240657,5.62404382,136.01,135.95,6.95068054]
[1768022240858,6.6248,136.03,135.95,6.95068054]
[1768022241157,5.62404382,136.02,135.95,6.95068054]
[1768022241358,5.62404382,136.01,135.95,6.95068054]
[1768022241551,6.6248,136.03,135.95,6.95068054]
[1768022241752,5.62384576,136.02,135.95,6.95068054]
[1768022241957,5.62384576,136.01,135.95,6.95068054]
[1768022242159,6.6248,136.03,135.95,6.95068054]
[1768022242361,5.62363005,136.02,135.95,6.95068054]
[1768022242561,5.62363005,136.01,135.95,6.95068054]
[1768022242763,6.6248,136.03,135.95,6.95068054]
[1768022242962,5.62363005,136.02,135.95,6.95068054]
[1768022243163,5.62363005,136.01,135.95,6.95068054]
[1768022243357,6.6248,136.03,135.95,6.95068054]
[1768022243554,5.62351688,136.02,135.95,6.95068054]
[1768022243754,5.62351688,136.01,135.95,6.95068054]
[1768022244065,6.6248,136.03,135.95,6.95068054]
[1768022244261,5.62354991,136.02,135.95,6.95068054]
[1768022244462,5.62354991,136.01,135.95,6.95068054]
[1768022244762,6.6248,136.03,135.95,6.95068054]
[1768022244962,5.62374438,136.02,135.95,6.95068054]
[1768022245159,5.62374438,136.01,135.95,6.95068054]
[1768022245461,6.6248,136.03,135.95,6.95068054]
[1768022245654,5.62350377,136.02,135.95,6.95068054]
[1768022245863,5.62350377,136.01,135.95,6.95068054]
[1768022246054,6.6248,136.03,135.95,6.95068054]
[1768022246256,5.62350377,136.02,135.95,6.95068054]
[1768022246555,5.62350377,136.01,135.95,6.95068054]
[1768022246862,6.6248,136.03,135.95,6.95068054]
[1768022247064,5.623314,136.02,135.95,6.95068054]
[1768022247263,5.623314,136.01,135.95,6.95068054]
[1768022247558,6.6253,136.02,135.95,6.95068054]
[1768022247763,5.62313612,136.01,135.95,6.95068054]
[1768022247964,6.6253,136.02,135.95,6.95068054]
[1768022248164,5.62313612,136.01,135.95,6.95068054]
[1768022248359,6.6253,136.02,135.95,6.95068054]
[1768022248563,5.62300037,136.01,135.95,6.95068054]
[1768022248761,6.6253,136.02,135.95,6.95068054]
[1768022248962,5.62300037,136.01,135.95,6.95068054]
[1768022249163,6.6253,136.02,135.95,6.95068054]
[1768022249363,5.62290546,136.01,135.95,6.95068054]
[1768022249563,6.6253,136.02,135.95,6.95068054]
[1768022249861,5.62290546,136.01,135.95,6.95068054]
[1768022250061,6.6253,136.02,135.95,6.95068054]
[1768022250263,5.62280951,136.01,135.95,6.95068054]
[1768022250464,6.6253,136.02,135.95,6.95068054]
[1768022250666,5.62285051,136.01,135.95,6.95068054]
[1768022250867,6.6253,136.02,135.95,6.95068054]
[1768022251069,5.62285051,136.01,135.95,6.95068054]
[1768022251260,6.6253,136.02,135.95,6.95068054]
[1768022251461,5.62283501,136.01,135.95,6.95068054]
[1768022251765,6.6253,136.02,135.95,6.95068054]
[1768022251966,5.62244058,136.01,135.95,6.95068054]
[1768022252269,6.6253,136.02,135.95,6.95068054]
[1768022252568,5.62273765,136.01,135.95,6.95068054]
[1768022252766,6.6253,136.02,135.95,6.95068054]
[1768022252958,5.62273765,136.01,135.95,6.95068054]
[1768022253159,6.6253,136.02,135.95,6.95068054]
[1768022253356,5.62272663,136.01,135.95,6.95068054]
[1768022253561,6.6253,136.02,135.95,6.95068054]
[1768022253766,5.62292385,136.01,135.95,6.95068054]
[1768022254068,6.6253,136.02,135.95,6.95068054]
[1768022254268,5.62295769,136.01,135.95,6.95068054]
[1768022254469,6.6253,136.02,135.95,6.95068054]
[1768022254664,5.6230902,136.01,135.95,6.95068054]
[1768022254865,6.6253,136.02,135.95,6.95068054]
[1768022255065,5.6230902,136.01,135.95,6.95068054]
[1768022255364,6.6253,136.02,135.96,0.30906327]
[1768022255564,5.62328953,136.01,135.96,0.30906327]
[1768022255770,6.6253,136.02,135.96,0.30906327]
[1768022255970,5.62328953,136.01,135.96,0.30906327]
[1768022256270,6.6253,136.02,135.96,0.30906327]
[1768022256462,5.62353489,136.01,135.96,0.30906327]
[1768022256666,6.6253,136.02,135.96,0.30906327]
[1768022256967,5.62353489,136.01,135.96,0.30906327]
[1768022257161,6.6253,136.02,135.96,0.30906327]
[1768022257367,5.6236644,136.01,135.96,0.30906327]
[1768022257665,6.6253,136.02,135.96,0.30906327]
[1768022257866,5.62386165,136.01,135.96,0.30906327]
[1768022258065,6.6253,136.02,135.96,0.30906327]
[1768022258266,5.62392577,136.01,135.96,0.30906327]
[1768022258470,6.6253,136.02,135.96,0.30906327]
[1768022258770,5.62398583,136.01,135.96,0.30906327]
[1768022258985,6.6253,136.02,135.96,0.30906327]
[1768022259280,5.62398951,136.01,135.96,0.30906327]
[1768022259570,6.6253,136.02,135.96,0.30906327]
[1768022259870,5.6244004,136.01,135.96,0.30906327]
[1768022260073,6.6253,136.02,135.96,0.30906327]
[1768022260372,5.62450852,136.01,135.96,0.30906327]
[1768022260561,6.6253,136.02,135.96,0.30906327]
[1768022260763,5.62485851,136.01,135.96,0.30906327]
[1768022260967,6.6253,136.02,135.96,0.30906327]
[1768022261167,5.62485851,136.01,135.96,0.30906327]
[1768022261375,6.6253,136.02,135.96,0.30906327]
[1768022261572,5.6253702,136.01,135.96,0.30906327]
[1768022261874,6.6253,136.02,135.96,0.30906327]
[1768022262174,5.6253702,136.01,135.96,0.30906327]
[1768022262475,6.6253,136.02,135.96,0.30906327]
[1768022262673,5.625944,136.01,135.96,0.30906327]
[1768022262971,6.6253,136.02,135.96,0.30906327]
[1768022263173,5.6259387,136.01,135.96,0.30906327]
[1768022263370,6.6253,136.02,135.96,0.30906327]
[1768022263572,5.62658951,136.01,135.96,0.30906327]
[1768022263869,6.6253,136.02,135.96,0.30906327]
[1768022264069,5.62658951,136.01,135.96,0.30906327]
[1768022264278,6.6253,136.02,135.96,0.30906327]
[1768022264574,5.62732937,136.01,135.96,0.30906327]
[1768022264768,6.6253,136.02,135.96,0.30906327]
[1768022264969,5.62732937,136.01,135.96,0.30906327]
[1768022265169,6.6253,136.02,135.96,0.30906327]
[1768022265476,5.62742112,136.01,135.96,0.30906327]
[1768022265777,6.6253,136.02,135.96,0.30906327]
[1768022265972,5.62742112,136.01,135.96,0.30906327]
[1768022266274,5.62742112,136.0,135.96,0.30906327]
[1768022266576,6.6253,136.02,135.96,0.30906327]
[1768022266776,5.62844865,136.01,135.96,0.30906327]
[1768022267077,6.6253,136.02,135.96,0.30906327]
[1768022267078,5.62844865,136.0,135.96,0.30906327]
[1768022267276,6.6253,136.02,135.96,0.30906327]
[1768022267477,5.62944829,136.01,135.96,0.30906327]
[1768022267675,5.62944829,136.0,135.96,0.30906327]
[1768022267875,6.6253,136.02,135.96,0.30906327]
[1768022268079,5.62944829,136.01,135.96,0.30906327]
[1768022268272,5.62944829,136.0,135.96,0.30906327]
[1768022268478,6.6253,136.02,135.96,0.30906327]
[1768022268781,5.63069974,136.01,135.96,0.30906327]
[1768022268970,5.63069974,136.0,135.96,0.30906327]
[1768022269170,6.6253,136.02,135.96,0.30906327]
[1768022269378,5.63170526,136.01,135.96,0.30906327]
[1768022269579,5.63170526,136.0,135.96,0.30906327]
[1768022269769,6.6253,136.02,135.96,0.30906327]
[1768022270072,5.63170526,136.01,135.96,0.30906327]
[1768022270272,5.63170526,136.0,135.96,0.30906327]
[1768022270474,6.6253,136.02,135.96,0.30906327]
[1768022270674,5.632001,136.01,135.96,0.30906327]
[1768022270875,5.632001,136.0,135.96,0.30906327]
[1768022271075,6.6253,136.02,135.96,0.30906327]
[1768022271378,5.63238997,136.01,135.96,0.30906327]
[1768022271682,5.63238997,136.0,135.96,0.30906327]
[1768022271975,6.6253,136.02,135.96,0.30906327]
[1768022272174,5.63238997,136.01,135.96,0.30906327]
[1768022272382,5.63238997,136.0,135.96,0.30906327]
[1768022272578,6.6253,136.02,135.96,0.30906327]
[1768022272778,5.63288479,136.01,135.96,0.30906327]
[1768022272980,5.63288479,136.0,135.96,0.30906327]
[1768022273176,6.6253,136.02,135.96,0.30906327]
[1768022273377,5.63289644,136.01,135.96,0.30906327]
[1768022273576,5.63289644,136.0,135.96,0.30906327]
[1768022273775,6.6253,136.02,135.96,0.30906327]
[1768022273975,5.63289644,136.01,135.96,0.30906327]
[1768022274178,5.63289644,136.0,135.96,0.30906327]
[1768022274382,6.6253,136.02,135.96,0.30906327]
[1768022274682,5.63283004,136.01,135.96,0.30906327]
[1768022274877,5.63283004,136.0,135.96,0.30906327]
[1768022275177,6.6253,136.02,135.96,0.30906327]
[1768022275376,5.63276981,136.01,135.96,0.30906327]
[1768022275579,5.63276981,136.0,135.96,0.30906327]
[1768022275780,6.6253,136.02,135.96,0.30906327]
[1768022276075,5.63276981,136.01,135.96,0.30906327]
[1768022276381,5.63276981,136.0,135.96,0.30906327]
[1768022276681,6.6253,136.02,135.96,0.30906327]
[1768022276874,5.63271971,136.01,135.96,0.30906327]
[1768022277078,5.63271971,136.0,135.96,0.30906327]
[1768022277280,5.63271971,135.99,135.96,0.30906327]
[1768022277480,6.6253,136.02,135.96,0.30906327]
[1768022277681,5.63275695,136.01,135.96,0.30906327]
[1768022277882,5.63275695,136.0,135.96,0.30906327]
[1768022278081,5.63275695,135.99,135.96,0.30906327]
[1768022278278,6.6253,136.02,135.96,0.30906327]
[1768022278480,5.63261994,136.01,135.96,0.30906327]
[1768022278681,5.63261994,136.0,135.96,0.30906327]
[1768022278979,5.63261994,135.99,135.96,0.30906327]
[1768022279172,6.6253,136.02,135.96,0.30906327]
[1768022279374,5.63250353,136.01,135.96,0.30906327]
[1768022279581,6.6253,136.02,135.96,0.30906327]
[1768022279582,5.63250353,136.0,135.96,0.30906327]
[1768022279780,5.63250353,135.99,135.96,0.30906327]
[1768022279981,6.6253,136.02,135.96,0.30906327]
[1768022280183,5.63309217,136.01,135.96,0.30906327]
[1768022280381,5.63309217,136.0,135.96,0.30906327]
[1768022280582,5.63309217,135.99,135.96,0.30906327]
[1768022280781,6.6253,136.02,135.96,0.30906327]
[1768022280983,5.63309422,136.01,135.96,0.30906327]
[1768022281184,5.63309422,136.0,135.96,0.30906327]
[1768022281483,5.63309422,135.99,135.96,0.30906327]
[1768022281683,6.6253,136.02,135.96,0.30906327]
[1768022281887,5.63299975,136.01,135.96,0.30906327]
[1768022282086,5.63299975,136.0,135.96,0.30906327]
[1768022282287,5.63299975,135.99,135.96,0.30906327]
[1768022282594,6.6259,136.01,135.93,6.6293]
[1768022282778,5.63342984,136.0,135.93,6.95436532]
[1768022282984,5.63342984,135.99,135.93,6.95436532]
[1768022283293,6.6263,136.0,135.93,6.95436532]
[1768022283495,5.63285718,135.99,135.93,6.95436532]
[1768022283692,6.6263,136.0,135.93,6.95436532]
[1768022283892,5.63285718,135.99,135.93,6.95436532]
[1768022284190,6.6263,136.0,135.93,6.95436532]
[1768022284392,5.63286379,135.99,135.93,6.95436532]
[1768022284593,6.6263,136.0,135.93,6.95436532]
[1768022284794,5.63231534,135.99,135.93,6.95436532]
[1768022284993,6.6263,136.0,135.93,6.95436532]
[1768022285193,5.63231534,135.99,135.93,6.95436532]
[1768022285394,6.6263,136.0,135.93,6.95436532]
[1768022285692,5.63186794,135.99,135.93,6.95436532]
[1768022285888,6.6263,136.0,135.93,0.32506532]
[1768022286088,5.63186794,135.99,135.92,0.30154075]
[1768022286289,5.63133433,135.98,135.9,0.30154075]
[1768022286494,5.63149142,135.97,135.9,0.30154075]
[1768022286792,6.6269,135.99,135.9,0.30154075]
[1768022286992,5.6325819,135.98,135.9,0.30154075]
[1768022287297,6.626,136.01,135.93,0.30154075]
[1768022287489,5.62996054,136.0,135.93,0.30154075]
[1768022287698,5.62996054,135.99,135.93,0.30154075]
[1768022287993,5.62996054,135.98,135.93,0.30154075]
[1768022288195,6.626,136.01,135.93,0.30154075]
[1768022288397,5.62886192,136.0,135.93,0.30154075]
[1768022288691,5.62886192,135.99,135.93,0.30154075]
[1768022288893,5.62886192,135.98,135.93,0.30154075]
[1768022289096,6.626,136.01,135.93,0.30154075]
[1768022289395,5.62878618,136.0,135.93,0.30154075]
[1768022289593,5.62878618,135.99,135.93,6.6295]
[1768022289792,6.626,136.01,135.94,0.30154075]
[1768022289993,5.62777891,136.0,135.94,0.30154075]
[1768022290189,5.62777891,135.99,135.94,0.30154075]
[1768022290390,6.626,136.01,135.94,0.30154075]
[1768022290689,5.62730802,136.0,135.94,0.30154075]
[1768022290891,5.62730802,135.99,135.94,0.30154075]
[1768022291088,6.626,136.01,135.94,0.30154075]
[1768022291284,5.62730802,136.0,135.94,0.30154075]
[1768022291596,5.62730802,135.99,135.94,0.30154075]
[1768022291795,6.626,136.01,135.94,0.30154075]
[1768022291996,5.62688461,136.0,135.94,0.30154075]
[1768022292295,5.62688461,135.99,135.94,0.30154075]
[1768022292495,6.626,136.01,135.94,0.30154075]
[1768022292697,5.6265029,136.0,135.94,0.30154075]
[1768022292901,5.6265029,135.99,135.94,0.30154075]
[1768022293105,6.626,136.01,135.94,0.30154075]
[1768022293301,5.62639164,136.0,135.94,0.30154075]
[1768022293510,5.62639164,135.99,135.94,0.30154075]
[1768022293709,6.626,136.01,135.94,0.30154075]
[1768022293910,5.62603968,136.0,135.94,0.30154075]
[1768022294111,5.62603968,135.99,135.94,0.30154075]
[1768022294309,6.626,136.01,135.94,0.30154075]
[1768022294511,5.6257357,136.0,135.94,0.30154075]
[1768022294710,5.6257357,135.99,135.94,0.30154075]
[1768022294913,6.626,136.01,135.94,0.30154075]
[1768022295115,5.6257357,136.0,135.94,0.30154075]
[1768022295315,5.6257357,135.99,135.94,0.30154075]
[1768022295509,6.626,136.01,135.94,0.30154075]
[1768022295708,5.62555401,136.0,135.94,0.30154075]
[1768022295910,5.62555401,135.99,135.94,0.30154075]
[1768022296110,6.626,136.01,135.94,0.30154075]
[1768022296414,5.62544388,136.0,135.94,0.30154075]
[1768022296615,5.62544388,135.99,135.94,0.30154075]
[1768022296818,6.626,136.01,135.94,0.30154075]
[1768022297113,5.62521488,136.0,135.94,0.30154075]
[1768022297314,5.62521488,135.99,135.94,0.30154075]
[1768022297508,6.626,136.01,135.94,0.30154075]
[1768022297708,5.62495726,136.0,135.94,0.30154075]
[1768022297909,5.62495726,135.99,135.94,0.30154075]
[1768022298107,6.626,136.01,135.94,0.30154075]
[1768022298312,5.62496398,136.0,135.94,0.30154075]
[1768022298509,5.62496398,135.99,135.94,0.30154075]
[1768022298714,6.626,136.01,135.94,0.30154075]
[1768022298914,5.62480217,136.0,135.94,0.30154075]
[1768022299116,5.62480217,135.99,135.94,0.30154075]
[1768022299310,6.626,136.01,135.94,0.30154075]
[1768022299512,5.62462302,136.0,135.94,0.30154075]
[1768022299710,5.62462302,135.99,135.94,0.30154075]
[1768022299911,6.626,136.01,135.94,0.30154075]
[1768022300112,5.62462302,136.0,135.94,0.30154075]
[1768022300314,6.626,136.01,135.94,0.30154075]
[1768022300315,5.62462302,135.99,135.94,0.30154075]
[1768022300611,6.626,136.01,135.94,0.30154075]
[1768022300815,5.62447943,136.0,135.94,0.30154075]
[1768022301113,5.62447943,135.99,135.94,0.30154075]
[1768022301419,6.626,136.01,135.94,0.30154075]
[1768022301620,5.6243751,136.0,135.94,0.30154075]
[1768022301810,5.6243751,135.99,135.94,0.30154075]
[1768022302008,6.626,136.01,135.94,0.30154075]
[1768022302210,5.6243751,136.0,135.94,0.30154075]